bitfinex/quotes_BTCUSD_20241023
["timestamp","ask_amount","ask_price","bid_price","bid_amount"]
[1729659370989,0.00042167,67181.0,67180.0,0.41990678]
[1729659371188,0.00042167,67181.0,67180.0,0.37541]
[1729659371683,0.00042167,67181.0,67180.0,0.51686652]
[1729659373291,0.00042167,67181.0,67180.0,0.58362374]
[1729659373532,0.00042167,67181.0,67180.0,0.51686652]
[1729659374297,0.00042167,67181.0,67180.0,0.58362288]
[1729659375105,0.00042167,67181.0,67180.0,0.58363194]
[1729659378053,0.00042167,67181.0,67180.0,0.58363755]
[1729659378214,0.00042167,67181.0,67180.0,0.51686652]
[1729659378421,0.00042167,67181.0,67180.0,0.60588708]
[1729659378624,0.00042167,67181.0,67180.0,0.60589011]
[1729659379142,0.00042167,67181.0,67180.0,0.73193797]
[1729659379782,0.00042167,67181.0,67180.0,0.85079302]
[1729659380079,0.00042167,67181.0,67180.0,0.85279302]
[1729659380204,0.00042167,67181.0,67180.0,0.85079302]
[1729659383752,0.00042167,67181.0,67180.0,0.85279302]
[1729659386229,0.00042167,67181.0,67180.0,0.85079302]
[1729659389505,0.00042167,67181.0,67180.0,0.85279302]
[1729659390537,0.00042167,67181.0,67180.0,0.85079302]
[1729659397114,0.00042167,67181.0,67180.0,0.85279302]
[1729659397946,0.00042167,67181.0,67180.0,0.85079302]
[1729659398971,0.00042167,67181.0,67180.0,0.74193797]
[1729659401348,0.00042167,67181.0,67180.0,0.57323797]
[1729659401786,0.00042167,67181.0,67180.0,0.56323797]
[1729659401999,0.00042167,67181.0,67180.0,0.67498912]
[1729659402226,0.00042167,67181.0,67180.0,0.63054245]
[1729659406658,0.00042167,67181.0,67180.0,0.67499573]
[1729659407086,0.00042167,67181.0,67180.0,0.63054245]
[1729659407895,0.00042167,67181.0,67180.0,0.67499819]
[1729659408314,0.00042167,67181.0,67180.0,0.63054245]
[1729659408696,0.00042167,67181.0,67180.0,0.67499746]
[1729659409099,0.00042167,67181.0,67180.0,0.63072157]
[1729659409861,0.00042167,67181.0,67180.0,0.68017818]
[1729659410067,0.00042167,67181.0,67180.0,0.63572157]
[1729659411334,0.00042167,67181.0,67180.0,0.70240518]
[1729659411935,0.00042167,67181.0,67180.0,0.63572157]
[1729659413663,0.00042167,67181.0,67180.0,0.77096445]
[1729659415736,0.00042167,67181.0,67180.0,0.79319408]
[1729659416179,0.00042167,67181.0,67180.0,0.68204595]
[1729659417672,0.00042167,67181.0,67180.0,0.77097295]
[1729659417905,0.00042167,67181.0,67180.0,0.79319408]
[1729659418190,0.00042167,67181.0,67180.0,0.68204595]
[1729659418356,0.00042167,67181.0,67180.0,0.79320062]
[1729659418707,0.00042167,67181.0,67180.0,0.68204595]
[1729659418915,0.00042167,67181.0,67180.0,0.79320364]
[1729659419166,0.00042167,67181.0,67180.0,0.79319999]
[1729659419489,0.00042167,67181.0,67180.0,0.79320944]
[1729659419639,0.00042167,67181.0,67180.0,0.79320734]
[1729659419840,0.00042167,67181.0,67180.0,0.68204595]
[1729659420051,0.00042167,67181.0,67180.0,0.79320734]
[1729659420434,0.00042167,67181.0,67180.0,0.68204595]
[1729659420656,0.00042167,67181.0,67180.0,0.72465999]
[1729659420863,0.00042167,67181.0,67180.0,0.68204398]
[1729659421283,0.00042167,67181.0,67180.0,0.79321584]
[1729659421466,0.00042167,67181.0,67180.0,0.7932145]
[1729659421871,0.00042167,67181.0,67180.0,0.68204398]
[1729659422072,0.00042167,67181.0,67180.0,0.79321558]
[1729659422271,0.00042167,67181.0,67180.0,0.7932245]
[1729659422480,0.00042167,67181.0,67180.0,0.79322557]
[1729659422679,0.00042167,67181.0,67180.0,0.68204398]
[1729659422878,0.00042167,67181.0,67180.0,0.61063749]
[1729659423085,0.00042167,67181.0,67180.0,0.41971294]
[1729659423309,0.00042167,67181.0,67180.0,0.37523088]
[1729659423550,0.17692167,67181.0,67180.0,0.37523088]
[1729659424188,0.17692167,67181.0,67180.0,0.41971462]
[1729659424387,0.17692167,67181.0,67180.0,0.37523088]
[1729659424585,0.17692167,67181.0,67180.0,0.41971462]
[1729659425128,0.09882167,67181.0,67180.0,0.50428785]
[1729659425551,0.00042167,67181.0,67180.0,0.54876893]
[1729659425755,0.00042167,67181.0,67180.0,0.54876873]
[1729659425953,0.00042167,67181.0,67180.0,0.37523088]
[1729659426111,0.00042167,67181.0,67180.0,0.41971099]
[1729659426317,0.00042167,67181.0,67180.0,0.41970913]
[1729659426518,0.00042167,67181.0,67180.0,0.41971031]
[1729659426923,0.00042167,67181.0,67180.0,0.41971002]
[1729659427132,0.00042167,67181.0,67180.0,0.50428739]
[1729659427381,0.00042167,67181.0,67180.0,0.54876753]
[1729659427590,0.00042167,67181.0,67180.0,0.54876785]
[1729659428168,0.00042167,67181.0,67180.0,0.50428739]
[1729659428376,0.00042167,67181.0,67180.0,0.41971113]
[1729659429019,0.00042167,67181.0,67180.0,0.37523088]
[1729659429199,0.07592167,67181.0,67180.0,0.37523088]
[1729659438460,0.00042167,67181.0,67180.0,0.37523088]
[1729659439176,0.00042167,67181.0,67180.0,0.41970729]
[1729659439377,0.00042167,67181.0,67180.0,0.37523088]
[1729659439606,0.00042167,67181.0,67180.0,0.5541053]
[1729659440223,0.00042167,67181.0,67180.0,0.50962889]
[1729659443268,0.00042167,67181.0,67180.0,0.5541053]
[1729659443469,0.00042167,67181.0,67180.0,0.5541136]
[1729659443681,0.00042167,67181.0,67180.0,0.50962889]
[1729659443910,0.00042167,67181.0,67180.0,0.55411205]
[1729659444351,0.00042167,67181.0,67180.0,0.50962889]
[1729659445262,0.00042167,67181.0,67180.0,0.55411737]
[1729659445736,0.00042167,67181.0,67180.0,0.50962889]
[1729659445940,0.00042167,67181.0,67180.0,0.57634351]
[1729659446990,0.00042167,67181.0,67180.0,0.77486083]
[1729659447407,0.00042167,67181.0,67180.0,0.84344415]
[1729659449066,0.00042167,67181.0,67180.0,0.84349489]
[1729659451499,0.00042167,67181.0,67180.0,0.73225312]
[1729659452545,0.00042167,67181.0,67180.0,0.84110817]
[1729659476609,6.7e-07,67181.0,67180.0,0.84110817]
[1729659480678,6.7e-07,67181.0,67180.0,0.56615312]
[1729659491679,6.7e-07,67181.0,67180.0,0.43175511]
[1729659491886,6.7e-07,67181.0,67180.0,0.54061016]
[1729659521676,6.7e-07,67181.0,67180.0,0.42175511]
[1729659521923,6.7e-07,67181.0,67180.0,0.54061016]
[1729659522166,0.08092152,67188.0,67187.0,0.12407]
[1729659522400,0.08092152,67188.0,67187.0,0.44539813]
[1729659522605,0.17672152,67188.0,67187.0,0.33410328]
[1729659522829,0.17672152,67188.0,67187.0,0.54539813]
[1729659526496,0.17672152,67188.0,67187.0,0.43410328]
[1729659533470,0.17754652,67188.0,67187.0,0.37356588]
[1729659533604,0.17754652,67188.0,67187.0,0.48485785]
[1729659534649,0.096625,67188.0,67187.0,0.48485785]
[1729659535399,0.000825,67188.0,67187.0,0.48485785]
[1729659535605,0.000825,67188.0,67187.0,0.48242093]
[1729659535809,0.000825,67188.0,67187.0,0.61888107]
[1729659536021,0.000825,67188.0,67187.0,0.66543202]
[1729659547019,0.000825,67188.0,67187.0,0.66708202]
[1729659554506,0.000825,67188.0,67187.0,0.62071019]
[1729659554922,0.000825,67188.0,67187.0,0.66705028]
[1729659560679,0.000825,67188.0,67187.0,0.62071019]
[1729659560903,0.000825,67188.0,67187.0,0.66705302]
[1729659561275,0.000825,67188.0,67187.0,0.66705287]
[1729659562842,0.000825,67188.0,67187.0,0.84435287]
[1729659563963,0.000825,67188.0,67187.0,0.85435287]
[1729659579475,0.000825,67188.0,67187.0,0.98785473]
[1729659585382,0.000825,67188.0,67187.0,0.81055473]
[1729659589313,0.000825,67188.0,67187.0,0.90835473]
[1729659592574,0.000825,67188.0,67187.0,0.90843524]
[1729659593209,0.000825,67188.0,67187.0,0.85205287]
[1729659601648,0.000825,67188.0,67187.0,0.85405287]
[1729659602826,0.000825,67188.0,67187.0,0.96290792]
[1729659603291,0.000825,67188.0,67187.0,0.85205287]
[1729659613428,0.000825,67188.0,67187.0,0.85405287]
[1729659621215,0.000825,67194.0,67193.0,0.13477585]
[1729659621489,0.22363527,67199.0,67198.0,0.1145709]
[1729659621701,0.1672,67208.0,67203.0,0.12475785]
[1729659621922,0.1672,67208.0,67203.0,0.45153855]
[1729659622355,0.1672,67208.0,67203.0,0.34041837]
[1729659622574,0.1672,67208.0,67203.0,0.49556156]
[1729659623225,0.1672,67208.0,67203.0,0.59556156]
[1729659624338,0.0916,67208.0,67203.0,0.59556156]
[1729659624559,0.098825,67211.0,67203.0,0.59556156]
[1729659625222,0.098825,67211.0,67203.0,0.66030979]
[1729659625911,0.098825,67211.0,67203.0,0.54927342]
[1729659626143,0.098825,67211.0,67203.0,0.55476857]
[1729659626361,0.098825,67211.0,67203.0,0.66576972]
[1729659628355,0.098825,67211.0,67203.0,0.55476857]
[1729659630622,0.098825,67211.0,67203.0,0.64353896]
[1729659630851,0.098825,67211.0,67203.0,0.55476857]
[1729659631298,0.098825,67211.0,67203.0,0.6435304]
[1729659634351,0.098825,67211.0,67203.0,0.62133743]
[1729659634834,0.098825,67211.0,67203.0,0.55476857]
[1729659635054,0.098825,67211.0,67203.0,0.62134051]
[1729659635477,0.098825,67211.0,67203.0,0.55476857]
[1729659638254,0.098825,67211.0,67203.0,0.62135104]
[1729659638531,0.098825,67211.0,67203.0,0.48788808]
[1729659638532,0.000825,67211.0,67203.0,0.48788808]
[1729659638766,0.098,67205.0,67203.0,0.53228132]
[1729659639017,0.098,67205.0,67203.0,0.48788808]
[1729659640349,0.18254588,67204.0,67203.0,0.22457873]
[1729659640569,0.18254588,67204.0,67203.0,0.219042]
[1729659641027,0.18254588,67204.0,67197.0,0.238104]
[1729659641299,0.00482088,67195.0,67194.0,0.36270973]
[1729659641531,0.18172088,67195.0,67194.0,0.36270973]
[1729659643117,0.18172088,67195.0,67194.0,0.46270973]
[1729659648894,0.18172088,67195.0,67194.0,0.582931]
[1729659649339,0.1769,67195.0,67194.0,0.582931]
[1729659649798,0.1769,67195.0,67194.0,0.46270973]
[1729659654864,0.18172088,67195.0,67194.0,0.46270973]
[1729659655110,0.18172088,67195.0,67194.0,0.46436173]
[1729659655361,0.18172088,67195.0,67194.0,0.458825]
[1729659656396,0.18172088,67195.0,67194.0,0.001652]
[1729659656631,0.18172088,67195.0,67194.0,0.12071]
[1729659656853,0.18172088,67195.0,67194.0,0.001652]
[1729659657139,0.18172088,67195.0,67194.0,0.12071]
[1729659657390,0.18172088,67195.0,67194.0,0.001652]
[1729659657643,0.18672088,67195.0,67194.0,0.001652]
[1729659658121,0.11367593,67192.0,67191.0,0.0001001]
[1729659658388,0.34569051,67192.0,67191.0,0.0001001]
[1729659658640,0.32817746,67192.0,67191.0,0.0001001]
[1729659659126,0.32817746,67192.0,67181.0,0.238161]
[1729659659127,0.08122088,67181.0,67180.0,0.34437027]
[1729659659378,0.19007593,67181.0,67180.0,0.34437027]
[1729659659627,0.19007593,67181.0,67180.0,0.120735]
[1729659660347,0.31886352,67181.0,67180.0,0.001652]
[1729659660610,0.28987593,67181.0,67180.0,0.001652]
[1729659661108,0.29487593,67181.0,67180.0,0.001652]
[1729659661599,0.30598797,67181.0,67180.0,0.001652]
[1729659661824,0.29487593,67181.0,67180.0,0.001652]
[1729659663279,0.33574903,67181.0,67180.0,0.001652]
[1729659663746,0.29487593,67181.0,67180.0,0.001652]
[1729659667803,0.18602088,67181.0,67180.0,0.120735]
[1729659669426,0.18602088,67181.0,67180.0,0.001652]
[1729659669931,0.18802088,67181.0,67180.0,0.001652]
[1729659670637,0.18602088,67181.0,67180.0,0.001652]
[1729659670876,0.40516331,67181.0,67180.0,0.001652]
[1729659671091,0.4162651,67181.0,67180.0,0.001652]
[1729659671806,0.20212267,67181.0,67180.0,0.120735]
[1729659672063,0.29987593,67181.0,67180.0,0.120735]
[1729659672314,0.31097772,67181.0,67180.0,0.120735]
[1729659673800,0.31098015,67181.0,67180.0,0.120735]
[1729659674743,0.30098015,67181.0,67180.0,0.120735]
[1729659675042,0.33207817,67181.0,67180.0,0.120735]
[1729659675740,0.33707817,67181.0,67180.0,0.001652]
[1729659675961,0.34207817,67181.0,67180.0,0.001652]
[1729659677410,0.51403734,67181.0,67180.0,0.001652]
[1729659678156,0.63311834,67181.0,67180.0,0.001652]
[1729659678398,0.51403734,67181.0,67180.0,0.001652]
[1729659679126,0.63311834,67181.0,67180.0,0.001652]
[1729659679602,0.51403734,67181.0,67180.0,0.001652]
[1729659681443,0.51404397,67181.0,67180.0,0.001652]
[1729659681665,0.74198002,67181.0,67180.0,0.001652]
[1729659681885,0.63512497,67181.0,67180.0,0.001652]
[1729659682976,0.63312497,67181.0,67180.0,0.001652]
[1729659684548,0.63314891,67181.0,67180.0,0.001652]
[1729659685949,0.74200396,67181.0,67180.0,0.001652]
[1729659686168,0.63314891,67181.0,67180.0,0.001652]
[1729659688615,0.51315905,67181.0,67180.0,0.001652]
[1729659688830,0.51931218,67181.0,67180.0,0.001652]
[1729659689947,0.51931412,67181.0,67180.0,0.001652]
[1729659692393,0.73702422,67181.0,67180.0,0.001652]
[1729659692825,0.73702305,67181.0,67180.0,0.001652]
[1729659693282,0.77227959,67181.0,67180.0,0.001652]
[1729659693468,0.83907448,67181.0,67180.0,0.001652]
[1729659693714,0.77245881,67181.0,67180.0,0.001652]
[1729659694131,5.83361364,67181.0,67180.0,0.001652]
[1729659694363,5.90022931,67181.0,67180.0,0.001652]
[1729659694814,5.90022974,67181.0,67180.0,0.001652]
[1729659695952,5.83344622,67181.0,67180.0,0.001652]
[1729659696383,5.78902441,67181.0,67180.0,0.001652]
[1729659697410,4.67907757,67181.0,67180.0,0.001652]
[1729659697661,3.78002441,67181.0,67180.0,0.001652]
[1729659698359,4.03301126,67181.0,67180.0,0.001652]
[1729659698578,3.98870059,67181.0,67180.0,0.001652]
[1729659699267,4.09980349,67181.0,67180.0,0.001652]
[1729659700407,3.98870059,67181.0,67180.0,0.001652]
[1729659700911,3.98869324,67181.0,67180.0,0.001652]
[1729659701625,3.94412159,67181.0,67180.0,0.001652]
[1729659702069,3.98869008,67181.0,67180.0,0.001652]
[1729659702290,3.98869008,67181.0,67178.0,0.001652]
[1729659702291,0.327784,67179.0,67178.0,0.001652]
[1729659702514,5.70199559,67179.0,67178.0,0.001652]
[1729659702726,0.31755505,67170.0,67169.0,0.00165]
[1729659702963,0.48790706,67170.0,67169.0,0.00165]
[1729659703232,0.67539066,67170.0,67169.0,0.00165]
[1729659703477,0.005,67157.0,67149.0,0.22363527]
[1729659703688,0.12500296,67157.0,67151.0,0.119134]
[1729659703904,0.005,67156.0,67151.0,0.119134]
[1729659704117,0.10885505,67152.0,67150.0,0.119134]
[1729659704339,0.10885505,67152.0,67151.0,0.119134]
[1729659704854,0.005,67149.0,67144.0,0.1746]
[1729659705099,0.2177101,67145.0,67144.0,0.1746]
[1729659705354,0.2177101,67145.0,67144.0,0.0808]
[1729659705590,0.1200012,67145.0,67142.0,0.00165]
[1729659705872,0.2177101,67145.0,67142.0,0.00165]
[1729659706120,0.10885505,67145.0,67142.0,0.1208]
[1729659706356,0.2177101,67145.0,67142.0,0.120799]
[1729659706619,0.01114615,67144.0,67142.0,0.00165]
[1729659707129,0.24021022,67145.0,67142.0,0.00165]
[1729659707130,0.02114615,67143.0,67142.0,0.00165]
[1729659707370,0.03974405,67143.0,67142.0,0.00165]
[1729659708736,0.03474405,67143.0,67142.0,0.00165]
[1729659711258,0.005,67144.0,67142.0,0.00165]
[1729659711259,0.01114615,67144.0,67142.0,0.00165]
[1729659711474,0.002,67156.0,67143.0,0.0808]
[1729659711475,0.01,67149.0,67143.0,0.0808]
[1729659711705,0.22363527,67149.0,67148.0,0.119139]
[1729659711918,0.22363527,67149.0,67145.0,0.238289]
[1729659711919,0.23363527,67149.0,67147.0,0.119141]
[1729659712135,0.01112341,67148.0,67147.0,0.119141]
[1729659712359,0.01612341,67149.0,67143.0,0.0808]
[1729659712584,0.02112341,67149.0,67145.0,0.119143]
[1729659712803,0.01,67149.0,67145.0,0.119143]
[1729659713661,0.02915939,67149.0,67145.0,0.119143]
[1729659714546,0.01915939,67149.0,67146.0,0.119141]
[1729659714795,0.02915939,67149.0,67142.0,0.00165]
[1729659715006,0.02915939,67149.0,67146.0,0.119142]
[1729659715231,0.01996298,67148.0,67144.0,0.238293]
[1729659715452,0.01,67150.0,67147.0,0.119139]
[1729659716783,0.01,67150.0,67147.0,0.120791]
[1729659717026,0.01,67150.0,67147.0,0.001652]
[1729659717239,0.01,67150.0,67147.0,0.120793]
[1729659717450,0.01,67150.0,67147.0,0.001652]
[1729659717886,0.01,67150.0,67147.0,0.120793]
[1729659718312,0.01,67150.0,67147.0,0.001652]
[1729659718735,0.0440553,67150.0,67147.0,0.001652]
[1729659719219,0.005,67149.0,67147.0,0.001652]
[1729659719469,0.01,67149.0,67147.0,0.001652]
[1729659719905,0.005,67149.0,67147.0,0.001652]
[1729659720478,0.01112341,67152.0,67151.0,0.119134]
[1729659720707,0.22363527,67158.0,67151.0,0.119134]
[1729659720708,0.01112341,67156.0,67155.0,0.119127]
[1729659720917,0.22363527,67166.0,67155.0,0.119127]
[1729659720918,0.1,67165.0,67155.0,0.1724]
[1729659721131,0.01113215,67164.0,67155.0,0.1724]
[1729659721345,0.23363527,67166.0,67162.0,0.119114]
[1729659721578,0.0111334,67165.0,67162.0,0.119114]
[1729659721810,0.0111334,67164.0,67163.0,0.119111]
[1729659722050,0.0111334,67167.0,67163.0,0.119111]
[1729659722280,0.0111334,67166.0,67163.0,0.119111]
[1729659722484,0.0111334,67165.0,67163.0,0.119111]
[1729659722691,0.0111334,67164.0,67162.0,0.119114]
[1729659722910,0.0111334,67168.0,67162.0,0.119114]
[1729659723115,0.01,67166.0,67160.0,0.119117]
[1729659723343,0.0111334,67165.0,67159.0,0.22363527]
[1729659723554,0.0111334,67167.0,67165.0,0.119109]
[1729659723767,0.0111334,67166.0,67165.0,0.119109]
[1729659724010,0.0111334,67168.0,67163.0,0.238224]
[1729659724209,0.0111334,67167.0,67165.0,0.119109]
[1729659724417,0.0111334,67166.0,67165.0,0.119109]
[1729659724623,0.0111334,67168.0,67165.0,0.119109]
[1729659724833,0.0111334,67167.0,67166.0,0.119107]
[1729659725250,0.0111334,67168.0,67167.0,0.119106]
[1729659725467,0.01113084,67168.0,67167.0,0.119106]
[1729659729776,0.01113084,67168.0,67164.0,0.238222]
[1729659729986,0.01113084,67168.0,67167.0,0.119106]
[1729659730441,0.000826,67169.0,67167.0,0.119106]
[1729659731085,0.000826,67169.0,67165.0,0.0944]
[1729659731299,0.01195684,67169.0,67166.0,0.238215]
[1729659731504,0.000826,67169.0,67165.0,0.0944]
[1729659731715,0.000826,67169.0,67165.0,0.213507]
[1729659732128,0.000826,67169.0,67165.0,0.119107]
[1729659732549,0.000826,67169.0,67161.0,0.238233]
[1729659732550,0.01195684,67169.0,67161.0,0.238233]
[1729659732756,0.10900442,67166.0,67158.0,0.078]
[1729659732972,0.10900442,67164.0,67159.0,0.11912]
[1729659733180,0.10900442,67164.0,67158.0,0.078]
[1729659733608,0.10900442,67164.0,67159.0,0.119119]
[1729659734233,0.10900442,67164.0,67158.0,0.078]
[1729659734440,0.10900442,67164.0,67160.0,0.119118]
[1729659734667,0.11400442,67167.0,67160.0,0.119117]
[1729659734890,0.005,67163.0,67155.0,0.238254]
[1729659735130,0.005,67163.0,67157.0,0.119123]
[1729659735543,0.005,67163.0,67158.0,0.119121]
[1729659735970,0.023,67165.0,67158.0,0.238244]
[1729659736182,0.000826,67169.0,67160.0,0.10900442]
[1729659736422,0.01112421,67168.0,67167.0,0.119106]
[1729659736657,0.000826,67169.0,67168.0,0.119104]
[1729659744088,0.000826,67169.0,67166.0,0.119106]
[1729659744523,0.02538455,67169.0,67164.0,0.119111]
[1729659744730,0.000826,67169.0,67163.0,0.119112]
[1729659744939,0.01195021,67169.0,67162.0,0.238226]
[1729659745172,0.01112421,67168.0,67162.0,0.238226]
[1729659745430,0.000826,67169.0,67165.0,0.119109]
[1729659745431,0.01112421,67167.0,67165.0,0.119109]
[1729659745663,0.01112421,67168.0,67165.0,0.119109]
[1729659745889,0.01112421,67168.0,67166.0,0.119107]
[1729659746111,0.01112421,67167.0,67166.0,0.119107]
[1729659746349,0.02935344,67167.0,67157.0,0.238244]
[1729659746614,0.02935344,67167.0,67160.0,0.119118]
[1729659746615,0.18146628,67167.0,67160.0,0.119118]
[1729659746823,0.01112421,67166.0,67161.0,0.119116]
[1729659747035,0.01112421,67165.0,67161.0,0.119115]
[1729659747244,0.01112421,67164.0,67161.0,0.119115]
[1729659747471,0.01112421,67163.0,67162.0,0.119114]
[1729659750430,0.01116009,67163.0,67162.0,0.119114]
[1729659751133,0.01116009,67163.0,67155.0,0.00053673]
[1729659751134,0.01116009,67163.0,67152.0,0.238262]
[1729659751386,0.17034207,67159.0,67152.0,0.238265]
[1729659751627,0.01116009,67158.0,67152.0,0.238265]
[1729659751849,0.11085022,67162.0,67152.0,0.238265]
[1729659751850,0.01116009,67157.0,67156.0,0.119125]
[1729659752290,0.01116009,67157.0,67152.0,0.238265]
[1729659752504,0.01116009,67156.0,67155.0,0.119126]
[1729659752724,0.01116009,67156.0,67152.0,0.238265]
[1729659752952,0.01116009,67155.0,67153.0,0.238259]
[1729659753163,0.05550871,67160.0,67153.0,0.238259]
[1729659753377,0.4101359,67159.0,67152.0,0.238265]
[1729659753588,0.4101359,67159.0,67147.0,0.001652]
[1729659753797,0.07780804,67158.0,67152.0,0.119131]
[1729659754008,0.01115856,67157.0,67152.0,0.119131]
[1729659754266,0.06664948,67158.0,67153.0,0.11913]
[1729659754267,0.01115856,67156.0,67153.0,0.11913]
[1729659754487,0.01115856,67155.0,67153.0,0.11913]
[1729659754708,0.01115856,67155.0,67154.0,0.119129]
[1729659754895,0.06664948,67158.0,67155.0,0.119126]
[1729659755138,0.01115645,67157.0,67150.0,0.238272]
[1729659755356,0.17034207,67155.0,67148.0,0.238279]
[1729659755610,0.17034207,67155.0,67149.0,0.119136]
[1729659755611,0.01115645,67154.0,67149.0,0.119136]
[1729659755815,0.17034207,67151.0,67147.0,0.001652]
[1729659756029,0.17034207,67151.0,67150.0,0.119136]
[1729659756243,0.01115434,67151.0,67148.0,0.238279]
[1729659756465,0.005,67154.0,67150.0,0.119136]
[1729659756680,0.01115259,67153.0,67151.0,0.119133]
[1729659756936,0.01115259,67152.0,67151.0,0.119133]
[1729659757567,0.01115205,67152.0,67151.0,0.119133]
[1729659760329,0.12021974,67153.0,67149.0,0.238276]
[1729659760548,0.05206268,67154.0,67153.0,0.11913]
[1729659760769,0.06320895,67154.0,67153.0,0.11913]
[1729659764440,0.05206268,67154.0,67153.0,0.11913]
[1729659766820,0.06320501,67154.0,67153.0,0.11913]
[1729659767082,0.06320501,67154.0,67151.0,0.120785]
[1729659767301,0.05206268,67154.0,67153.0,0.11913]
[1729659767730,0.06320512,67154.0,67153.0,0.11913]
[1729659767937,0.05206268,67154.0,67151.0,0.120785]
[1729659768156,0.05206268,67154.0,67152.0,0.119132]
[1729659768157,0.05073325,67153.0,67152.0,0.119132]
[1729659768398,0.15980094,67153.0,67152.0,0.119132]
[1729659769593,0.05073325,67153.0,67152.0,0.119132]
[1729659770200,0.01114244,67153.0,67152.0,0.119132]
[1729659770372,0.12021013,67153.0,67152.0,0.119132]
[1729659771453,0.12021013,67153.0,67151.0,0.001652]
[1729659771454,0.12521013,67153.0,67151.0,0.001652]
[1729659771664,0.01114244,67152.0,67151.0,0.001652]
[1729659772119,0.1874462,67152.0,67151.0,0.001652]
[1729659772353,0.21809759,67152.0,67151.0,0.001652]
[1729659772613,0.21809759,67152.0,67151.0,0.120786]
[1729659772847,0.04179759,67152.0,67151.0,0.120786]
[1729659773068,0.0111462,67152.0,67151.0,0.120786]
[1729659779514,0.0111595,67152.0,67151.0,0.359054]
[1729659779976,0.01115978,67152.0,67151.0,0.359054]
[1729659781957,0.005,67153.0,67151.0,0.359054]
[1729659781958,0.005,67153.0,67152.0,0.119132]
[1729659782194,0.01616775,67153.0,67152.0,0.119132]
[1729659782461,0.12523544,67153.0,67151.0,0.001652]
[1729659782691,0.01116775,67152.0,67151.0,0.120786]
[1729659784237,0.01116775,67152.0,67151.0,0.001652]
[1729659784679,0.42132659,67152.0,67151.0,0.001652]
[1729659784904,0.29122124,67152.0,67151.0,0.001652]
[1729659785117,0.35807604,67152.0,67151.0,0.001652]
[1729659785541,0.33579501,67152.0,67151.0,0.001652]
[1729659786994,0.3497505,67152.0,67151.0,0.001652]
[1729659787198,0.6457825,67152.0,67151.0,0.001652]
[1729659787815,0.5266505,67152.0,67151.0,0.001652]
[1729659788231,0.48207673,67152.0,67151.0,0.001652]
[1729659788664,0.38398239,67152.0,67151.0,0.001652]
[1729659788880,0.49305008,67152.0,67151.0,0.001652]
[1729659789092,0.47909459,67152.0,67151.0,0.001652]
[1729659789746,0.46792684,67152.0,67151.0,0.001652]
[1729659789967,0.47908702,67152.0,67151.0,0.001652]
[1729659790612,0.54594182,67152.0,67151.0,0.001652]
[1729659791035,0.63604375,67152.0,67151.0,0.001652]
[1729659793807,0.56918895,67152.0,67151.0,0.001652]
[1729659794679,0.63609291,67152.0,67151.0,0.001652]
[1729659795804,0.63611695,67152.0,67151.0,0.001652]
[1729659796934,0.63611454,67152.0,67151.0,0.001652]
[1729659797153,0.73393036,67152.0,67151.0,0.001652]
[1729659797384,0.73393242,67152.0,67151.0,0.001652]
[1729659798117,0.56918654,67152.0,67151.0,0.001652]
[1729659798362,0.73392753,67152.0,67151.0,0.001652]
[1729659798605,0.82306726,67152.0,67151.0,0.001652]
[1729659798843,0.85305953,67152.0,67151.0,0.001652]
[1729659799076,0.86700836,67152.0,67151.0,0.001652]
[1729659799304,0.86900836,67152.0,67151.0,0.001652]
[1729659799781,1.08950071,67152.0,67151.0,0.001652]
[1729659800022,0.86900836,67152.0,67151.0,0.001652]
[1729659800254,0.98676913,67152.0,67151.0,0.001652]
[1729659800605,0.85305953,67152.0,67151.0,0.001652]
[1729659800861,0.85505953,67152.0,67151.0,0.001652]
[1729659801110,0.85506017,67152.0,67151.0,0.001652]
[1729659804327,0.8439024,67152.0,67151.0,0.001652]
[1729659804563,0.85505718,67152.0,67151.0,0.001652]
[1729659805333,0.96412487,67152.0,67151.0,0.001652]
[1729659805582,6.01412487,67152.0,67151.0,0.001652]
[1729659806285,6.02806752,67152.0,67151.0,0.001652]
[1729659808129,6.01412491,67152.0,67151.0,0.001652]
[1729659810287,6.0280696,67152.0,67151.0,0.001652]
[1729659811157,6.01412547,67152.0,67151.0,0.001652]
[1729659812054,6.01412684,67152.0,67151.0,0.001652]
[1729659812266,6.02807278,67152.0,67151.0,0.001652]
[1729659815019,6.01412684,67152.0,67151.0,0.001652]
[1729659815223,6.00297009,67152.0,67151.0,0.001652]
[1729659816785,6.24463901,67152.0,67151.0,0.001652]
[1729659817004,6.34463901,67152.0,67151.0,0.001652]
[1729659817252,6.34455101,67152.0,67151.0,0.001652]
[1729659817480,6.38917281,67152.0,67151.0,0.001652]
[1729659817705,6.34455101,67152.0,67151.0,0.001652]
[1729659817956,6.38917571,67152.0,67151.0,0.001652]
[1729659818173,6.38917552,67152.0,67151.0,0.001652]
[1729659818415,6.34455157,67152.0,67151.0,0.001652]
[1729659818638,6.38917853,67152.0,67151.0,0.001652]
[1729659819085,6.40312818,67152.0,67151.0,0.001652]
[1729659820047,6.71046598,67152.0,67151.0,0.001652]
[1729659820268,0.131139,67148.0,67147.0,0.001652]
[1729659820485,6.09258993,67148.0,67147.0,0.001652]
[1729659820704,6.37083325,67148.0,67147.0,0.001652]
[1729659820913,6.52135093,67148.0,67147.0,0.001652]
[1729659821144,6.44572222,67148.0,67147.0,0.001652]
[1729659821374,6.49711791,67148.0,67147.0,0.001652]
[1729659821595,6.6061856,67148.0,67147.0,0.001652]
[1729659821807,6.64763559,67148.0,67147.0,0.001652]
[1729659822039,6.49711791,67148.0,67147.0,0.001652]
[1729659822253,6.64763559,67148.0,67147.0,0.001652]
[1729659822670,6.75670328,67148.0,67147.0,0.001652]
[1729659822872,6.49711791,67148.0,67147.0,0.001652]
[1729659823307,5.63431791,67148.0,67147.0,0.001652]
[1729659823796,1.3950268,67148.0,67147.0,0.001652]
[1729659823798,1.35039984,67148.0,67147.0,0.001652]
[1729659824014,1.11988883,67148.0,67147.0,0.001652]
[1729659824436,1.16448628,67148.0,67147.0,0.001652]
[1729659824658,1.22616446,67148.0,67147.0,0.001652]
[1729659824878,1.16762002,67148.0,67147.0,0.001652]
[1729659825096,1.22615357,67148.0,67147.0,0.001652]
[1729659825321,1.18155621,67148.0,67147.0,0.001652]
[1729659828473,1.17040323,67148.0,67147.0,0.001652]
[1729659828682,1.18155587,67148.0,67147.0,0.001652]
[1729659830489,6.14515219,67148.0,67147.0,0.001652]